bitfinex/quotes_ETHUSD_20250916
["timestamp","ask_amount","ask_price","bid_price","bid_amount"]
[1757998168975,2.32116963,4523.4,4523.1,0.9225]
[1757998169184,2.21078411,4523.3,4523.1,0.9225]
[1757998169395,2.21078411,4523.3,4523.1,0.4923]
[1757998169810,0.1104,4523.4,4523.1,0.4923]
[1757998170115,0.1104,4523.4,4523.3,0.2995]
[1757998170395,2.32112644,4523.4,4523.3,0.2995]
[1757998170558,2.32112644,4523.4,4523.1,0.001]
[1757998170758,2.32112644,4523.4,4523.1,0.4923]
[1757998170994,0.1104,4523.4,4523.3,0.2995]
[1757998171306,0.1104,4523.4,4523.1,0.4923]
[1757998171710,0.1104,4523.4,4523.1,0.001]
[1757998171913,2.21078206,4523.3,4523.1,0.001]
[1757998172291,2.21078206,4523.3,4523.1,0.4923]
[1757998172623,2.32113361,4523.4,4523.1,0.4923]
[1757998172819,0.1104,4523.4,4523.1,0.001]
[1757998173034,0.1104,4523.4,4523.3,0.2995]
[1757998173192,0.1104,4523.4,4523.3,1.221]
[1757998175722,0.1104,4523.4,4523.1,0.001]
[1757998175891,0.1104,4523.4,4523.3,0.2995]
[1757998176090,0.1104,4523.4,4523.3,1.221]
[1757998178023,3.4079,4523.4,4523.1,0.001]
[1757998178233,0.4079,4523.4,4523.1,0.001]
[1757998178391,0.1104,4523.4,4523.2,0.9215]
[1757998178725,0.1104,4523.4,4523.3,0.7908]
[1757998178927,0.1104,4523.4,4523.3,1.221]
[1757998179914,3.685,4523.7,4523.3,1.221]
[1757998180120,3.0,4523.6,4523.3,1.221]
[1757998180424,3.0,4523.6,4523.4,0.9215]
[1757998180625,3.0,4523.6,4523.5,1.221]
[1757998181546,3.0,4523.6,4523.5,0.7908]
[1757998181918,3.0,4523.6,4523.5,1.221]
[1757998183148,5.3096287,4523.6,4523.1,0.4923]
[1757998183347,5.3096287,4523.6,4523.2,0.4302]
[1757998183516,5.2106287,4523.6,4523.1,0.001]
[1757998183852,3.0,4523.6,4523.2,0.9215]
[1757998184049,3.0,4523.6,4523.3,0.9215]
[1757998184247,3.0,4523.6,4523.4,0.9215]
[1757998184552,6.00498402,4523.7,4523.5,0.4913]
[1757998184753,5.32098402,4523.7,4523.5,0.4913]
[1757998184955,9.00498402,4523.7,4523.5,0.4913]
[1757998185151,2.32098402,4523.7,4523.5,0.4913]
[1757998185357,6.00498402,4523.7,4523.5,0.9215]
[1757998185721,5.2106287,4523.6,4523.5,0.9215]
[1757998186020,3.0,4523.6,4523.5,0.9215]
[1757998186575,3.0,4523.6,4523.5,1.221]
[1757998189000,6.7934,4523.7,4523.1,0.001]
[1757998189284,6.7934,4523.7,4523.5,0.7297]
[1757998189449,6.7934,4523.7,4523.5,1.221]
[1757998189450,7.26982461,4523.7,4523.5,1.221]
[1757998189851,9.48042035,4523.7,4523.5,1.221]
[1757998190158,9.00399574,4523.7,4523.5,1.221]
[1757998190348,2.2106287,4523.6,4523.5,1.221]
[1757998190704,2.2106287,4523.6,4523.5,0.4913]
[1757998191187,2.2106287,4523.6,4523.3,0.9087]
[1757998191382,2.33472512,4523.6,4523.4,0.4663]
[1757998191563,2.33472512,4523.6,4523.4,0.9087]
[1757998191962,9.00398538,4523.7,4523.4,0.9087]
[1757998192175,2.2106313,4523.6,4523.4,0.9087]
[1757998192384,2.33474753,4523.6,4523.4,0.9087]
[1757998192568,0.12411623,4523.6,4523.4,0.9087]
[1757998192802,2.21063963,4523.6,4523.4,0.9087]
[1757998192971,2.21063963,4523.6,4523.4,0.4663]
[1757998193176,5.21063963,4523.6,4523.4,0.4663]
[1757998194191,0.099,4523.5,4523.1,0.001]
[1757998194361,3.1104,4523.4,4523.2,0.9087]
[1757998194561,3.1104,4523.4,4523.3,0.4663]
[1757998194787,3.1104,4523.4,4523.3,1.1981]
[1757998195604,0.1104,4523.4,4523.3,1.1981]
[1757998196097,3.0,4523.6,4523.3,1.1981]
[1757998196303,0.12417471,4523.5,4523.4,0.9633]
[1757998196487,0.12417471,4523.5,4523.4,0.499]
[1757998196691,0.12417471,4523.5,4523.4,0.4643]
[1757998197197,0.12417471,4523.5,4523.4,1.2543]
[1757998198495,0.12417471,4523.5,4523.4,0.79]
[1757998198670,3.1104,4523.7,4523.4,0.79]
[1757998198870,0.33113473,4523.6,4523.5,0.9633]
[1757998199108,0.33113473,4523.6,4523.5,0.4643]
[1757998199273,0.33113473,4523.6,4523.1,0.001]
[1757998199597,0.33113473,4523.6,4523.2,0.9633]
[1757998199598,4.01313473,4523.6,4523.2,0.9633]
[1757998199800,3.12417552,4523.5,4523.2,0.499]
[1757998199993,3.47656269,4523.5,4523.2,0.499]
[1757998200188,3.47656269,4523.5,4523.4,0.291]
[1757998200396,3.60074713,4523.5,4523.4,1.2543]
[1757998200582,3.60074713,4523.5,4523.4,0.499]
[1757998200917,3.60074713,4523.5,4523.2,0.9633]
[1757998201084,3.60074713,4523.5,4523.1,0.001]
[1757998201085,5.21067969,4523.5,4523.1,0.001]
[1757998201409,5.68724238,4523.5,4523.2,0.499]
[1757998201770,3.47656269,4523.5,4523.3,0.499]
[1757998202207,3.0,4523.5,4523.3,0.4643]
[1757998202384,3.0,4523.5,4523.4,0.499]
[1757998202580,3.12420351,4523.5,4523.4,1.2543]
[1757998202887,3.47656269,4523.6,4523.4,1.2543]
[1757998203293,3.0,4523.6,4523.5,0.499]
[1757998203505,3.33133615,4523.6,4523.5,0.499]
[1757998203698,3.80789884,4523.6,4523.5,0.499]
[1757998204405,3.80789884,4523.6,4523.5,1.2543]
[1757998205286,4.10639884,4523.6,4523.2,0.4643]
[1757998205604,3.77506269,4523.6,4523.3,0.499]
[1757998205795,3.47656269,4523.6,4523.4,0.499]
[1757998205997,3.0,4523.6,4523.4,0.9633]
[1757998206879,3.47656269,4523.6,4523.4,0.9633]
[1757998207372,3.0,4523.6,4523.5,0.499]
[1757998207572,3.33133856,4523.6,4523.5,0.499]
[1757998207772,3.80790125,4523.6,4523.5,0.499]
[1757998208077,6.11753789,4523.6,4523.1,0.001]
[1757998208275,6.11753789,4523.6,4523.2,0.499]
[1757998208276,5.78619933,4523.6,4523.2,0.499]
[1757998208476,5.78619933,4523.6,4523.3,0.499]
[1757998208700,3.57556269,4523.6,4523.3,0.9633]
[1757998208895,3.47656269,4523.6,4523.4,0.9633]
[1757998209210,3.0,4523.6,4523.4,0.9633]
[1757998209703,3.47656269,4523.6,4523.4,0.4643]
[1757998209905,3.47656269,4523.6,4523.5,0.79]
[1757998210108,3.80793885,4523.6,4523.5,1.2543]
[1757998210504,3.60082875,4523.6,4523.5,1.2543]
[1757998212016,3.60082875,4523.6,4523.5,0.499]
[1757998212311,3.60082875,4523.6,4523.5,0.9633]
[1757998212519,3.60082875,4523.6,4523.5,1.2543]
[1757998212692,3.60082189,4523.6,4523.5,1.2543]
[1757998213317,3.47656269,4523.6,4523.5,1.2543]
[1757998213504,3.0,4523.6,4523.5,0.9633]
[1757998214521,3.0,4523.6,4523.5,1.2543]
[1757998216216,3.12425232,4523.6,4523.5,1.2543]
[1757998216396,3.60081501,4523.6,4523.5,0.499]
[1757998216599,3.60081547,4523.6,4523.5,0.499]
[1757998217424,0.60081547,4523.6,4523.5,0.499]
[1757998217621,6.80525278,4523.6,4523.5,0.499]
[1757998217838,6.681,4523.6,4523.5,0.9633]
[1757998218391,7.15756269,4523.6,4523.5,0.9633]
[1757998218602,6.681,4523.6,4523.5,0.9633]
[1757998219019,7.15756269,4523.6,4523.5,0.9633]
[1757998219320,7.15756269,4523.6,4523.5,1.2543]
[1757998219524,6.681,4523.6,4523.5,1.2543]
[1757998220592,3.0,4523.6,4523.5,1.2543]
[1757998220805,1e-08,4523.9,4523.8,2.21053096]
[1757998221026,1e-08,4523.9,4523.6,0.9155]
[1757998221326,1e-08,4523.9,4523.8,2.52703096]
[1757998221824,1e-08,4523.9,4523.8,3.44253096]
[1757998222028,1e-08,4523.9,4523.8,4.41170118]
[1757998226051,1e-08,4523.9,4523.8,2.20117022]
[1757998226256,1e-08,4523.9,4523.8,4.41170118]
[1757998230759,1e-08,4523.9,4523.8,4.52210118]
[1757998231759,1e-08,4523.9,4523.8,16.81157022]
[1757998231957,1e-08,4523.9,4523.8,19.02210118]
[1757998232261,1e-08,4523.9,4523.8,4.52210118]
[1757998234059,1e-08,4523.9,4523.8,8.20210118]
[1757998241694,1e-08,4523.9,4523.8,22.70210118]
[1757998243151,1e-08,4523.9,4523.8,8.20210118]
[1757998245457,1e-08,4523.9,4523.8,8.20310118]
[1757998247284,1e-08,4523.9,4523.8,22.70310118]
[1757998247663,0.30430001,4523.9,4523.8,4.76057022]
[1757998247862,0.30430001,4523.9,4523.8,3.7914]
[1757998248292,0.30430001,4523.9,4523.8,6.00193096]
[1757998248989,0.30430001,4523.9,4523.8,3.7914]
[1757998249306,0.75580001,4523.9,4523.8,0.001]
[1757998252766,1e-08,4523.9,4523.8,2.97983096]
[1757998252974,1e-08,4523.9,4523.8,3.41013096]
[1757998253492,1e-08,4523.9,4523.8,4.48385012]
[1757998253691,1e-08,4523.9,4523.8,4.46174482]
[1757998255001,1e-08,4523.9,4523.8,2.25121386]
[1757998255689,1e-08,4523.9,4523.8,4.46174482]
[1757998256008,0.09900001,4523.9,4523.8,1.05261386]
[1757998256213,0.09900001,4523.9,4523.8,0.1114]
[1757998256725,1e-08,4523.9,4523.8,0.1114]
[1757998257023,1e-08,4523.9,4523.8,2.32193096]
[1757998257173,1e-08,4523.9,4523.8,2.78243096]
[1757998257604,1e-08,4523.9,4523.8,0.5719]
[1757998258184,1e-08,4523.9,4523.8,3.07363096]
[1757998258385,1e-08,4523.9,4523.8,4.19653875]
[1757998259809,1e-08,4523.9,4523.8,1.336]
[1757998260009,1e-08,4523.9,4523.8,0.8631]
[1757998260526,1e-08,4523.9,4523.8,3.07363096]
[1757998260884,1e-08,4523.9,4523.8,2.78243096]
[1757998261109,1e-08,4523.9,4523.8,3.07363096]
[1757998261413,1e-08,4523.9,4523.8,3.54653096]
[1757998262524,1e-08,4523.9,4523.8,1.336]
[1757998262915,1e-08,4523.9,4523.8,3.54653096]
[1757998263108,1e-08,4523.9,4523.8,1.336]
[1757998263521,1e-08,4523.9,4523.8,3.54653096]
[1757998263698,1e-08,4523.9,4523.8,1.336]
[1757998263907,1e-08,4523.9,4523.8,3.54653096]
[1757998268817,1e-08,4523.9,4523.8,0.5719]
[1757998269825,1e-08,4523.9,4523.8,3.54653096]
[1757998270130,1e-08,4523.9,4523.8,4.51245]
[1757998270333,1e-08,4523.9,4523.8,4.4903447]
[1757998271199,1e-08,4523.9,4523.8,18.9903447]
[1757998272331,1e-08,4523.9,4523.8,19.07892857]
[1757998292274,1e-08,4523.9,4523.8,17.85432857]
[1757998292669,1e-08,4523.9,4523.8,18.30592857]
[1757998292875,1e-08,4523.9,4523.8,19.06132857]
[1757998301797,0.47749156,4526.3,4525.7,2.20960293]
[1757998302024,1e-08,4525.9,4525.8,10.60864965]
[1757998302318,1e-08,4525.9,4525.8,12.58555411]
[1757998302523,1e-08,4526.8,4526.7,3.0011148]
[1757998302725,1e-08,4526.9,4526.8,3.001066]
[1757998302885,0.02,4527.9,4526.8,3.001066]
[1757998302886,0.02,4527.9,4526.9,3.792]
[1757998303085,0.02,4527.9,4527.8,2.20857811]
[1757998303316,0.02,4527.9,4527.8,7.62066389]
[1757998303515,0.119,4527.9,4527.8,7.59857811]
[1757998303713,0.119,4527.9,4527.8,22.09857811]
[1757998303920,0.119,4527.9,4527.8,18.40757811]
[1757998304089,0.119,4527.9,4527.8,22.09857811]
[1757998304615,0.02,4527.9,4527.8,22.09857811]
[1757998304984,0.119,4527.9,4527.8,22.09857811]
[1757998305594,0.8327,4527.9,4527.8,22.09857811]
[1757998305816,0.5818,4527.9,4527.8,22.09857811]
[1757998306613,0.8327,4527.9,4527.8,19.89]
[1757998306833,0.8327,4527.9,4527.8,5.39]
[1757998307033,0.8327,4527.9,4527.8,3.691]
[1757998307308,0.8327,4527.9,4527.8,3.692]
[1757998308050,0.8327,4527.9,4527.6,3.691]
[1757998308210,0.119,4527.9,4527.5,3.691]
[1757998308407,0.7137,4527.8,4527.6,3.691]
[1757998308639,0.8127,4527.7,4527.6,3.691]
[1757998310240,0.1005,4527.7,4527.6,3.691]
[1757998310406,0.8127,4527.7,4527.6,3.691]
[1757998311112,0.5633,4527.7,4527.6,3.691]
[1757998311452,0.1005,4527.7,4527.6,5.89967567]
[1757998311742,0.8127,4527.7,4527.6,3.691]
[1757998311941,0.5633,4527.7,4527.6,3.691]
[1757998312146,0.1005,4527.7,4527.6,5.89967567]
[1757998314347,0.5633,4527.7,4527.6,3.691]
[1757998314958,0.1005,4527.7,4527.6,5.89967567]
[1757998315665,0.02,4527.9,4527.8,2.20857811]
[1757998316026,0.119,4527.9,4527.8,5.89657811]
[1757998316423,0.119,4527.9,4527.8,3.688]
[1757998316657,0.8327,4527.9,4527.8,3.688]
[1757998316840,0.5818,4527.9,4527.8,5.89657811]
[1757998317024,0.5818,4527.9,4527.8,3.688]
[1757998317628,0.119,4527.9,4527.8,5.89657811]
[1757998318094,0.119,4527.9,4527.8,3.688]
[1757998319962,0.5818,4527.9,4527.8,3.688]
[1757998320173,0.8327,4527.9,4527.8,3.687]
[1757998320397,0.8327,4527.9,4527.6,0.1104]
[1757998320549,0.4628,4527.8,4527.6,0.1104]
[1757998320737,0.4628,4527.8,4527.6,3.7974]
[1757998320932,0.1005,4527.7,4527.6,3.7974]
[1757998321244,0.8127,4527.7,4527.5,3.687]
[1757998321460,0.4628,4527.6,4527.5,3.687]
[1757998321644,0.02,4527.9,4527.5,4.49098724]
[1757998321868,0.02,4527.9,4527.6,0.9367]
[1757998322178,0.02,4527.9,4527.8,2.20857811]
[1757998322378,0.02,4527.9,4527.8,3.44828705]
[1757998322551,0.02,4527.9,4527.8,18.90707283]
[1757998322882,0.02,4527.9,4527.8,18.88498705]
[1757998328388,0.02,4527.9,4527.8,20.39957811]
[1757998328557,0.119,4527.9,4527.8,20.40057811]
[1757998329186,0.119,4527.9,4527.8,5.90057811]
[1757998329490,0.5818,4527.9,4527.5,2.20867702]
[1757998329689,0.3699,4527.9,4527.6,3.692]
[1757998329848,0.4628,4527.8,4527.3,2.20880734]
[1757998330052,0.4628,4527.7,4527.4,3.692]
[1757998330246,0.1005,4527.5,4527.4,3.692]
[1757998330493,0.1005,4527.5,4527.4,5.90077324]
[1757998330987,0.1005,4527.5,4527.4,2.20877324]
[1757998331289,0.1005,4527.5,4527.4,5.90077324]
[1757998331486,0.1005,4527.5,4527.4,3.692]
[1757998331687,0.1005,4527.5,4527.4,5.90077324]
[1757998331989,0.1005,4527.5,4527.4,5.89977324]
[1757998332161,0.099,4527.5,4527.4,3.691]
[1757998332363,0.5618,4527.5,4527.3,0.1104]
[1757998332577,0.7137,4527.4,4527.3,0.1104]
[1757998332893,0.7137,4527.4,4527.3,3.691]
[1757998333060,0.8142,4527.4,4527.3,3.691]
[1757998333603,2.20907271,4526.8,4525.6,3.691]
[1757998333754,0.102,4525.9,4525.6,3.691]
[1757998333954,0.93652673,4526.5,4525.7,0.9367]
[1757998334257,0.4628,4526.5,4525.7,1.91277]
[1757998334474,0.4628,4526.5,4525.5,0.9367]
[1757998334475,0.4628,4526.5,4525.8,3.694]
[1757998334749,0.4628,4526.5,4525.9,5.36446073]
[1757998334949,0.4628,4526.5,4525.9,5.90446073]
[1757998335571,0.4628,4526.5,4525.9,3.695]
[1757998336086,0.4628,4526.5,4525.9,5.90449516]
[1757998336404,3.0,4526.6,4525.9,3.695]
[1757998336685,0.2977,4526.0,4525.9,3.695]
[1757998336901,0.4628,4526.4,4525.9,3.695]
[1757998337117,0.4628,4526.7,4526.0,2.20942537]
[1757998337470,0.4628,4526.9,4526.1,2.20940072]
[1757998337773,2.20892896,4527.1,4526.2,2.20935669]
[1757998338000,0.4628,4527.1,4526.2,2.68611691]
[1757998338273,0.4628,4527.1,4526.2,6.38011691]
[1757998338573,2.67171971,4527.1,4526.2,6.38011691]
[1757998338773,0.4628,4527.1,4526.3,2.20930262]
[1757998338974,2.67172619,4527.1,4526.3,2.20930262]
[1757998339187,2.20897817,4527.0,4526.2,4.1708]
[1757998339396,2.20897817,4527.0,4526.2,6.38015395]
[1757998339594,2.20897817,4527.0,4526.2,4.1708]
[1757998339783,2.20901795,4526.9,4526.2,4.1708]
[1757998339994,2.67181795,4526.9,4526.2,4.1708]
[1757998340195,3.0,4526.8,4526.2,4.1708]
[1757998340399,0.4628,4526.9,4526.2,4.1708]
[1757998340595,3.4628,4526.9,4526.2,6.38015117]
[1757998340983,5.67172756,4527.1,4526.2,2.68615117]
[1757998341204,3.0,4526.9,4526.2,0.4768]
[1757998341974,3.0,4526.9,4526.2,2.68615447]
[1757998342391,2.20902635,4526.9,4526.2,0.4768]
[1757998342595,0.4628,4527.0,4526.2,2.68615729]
[1757998342797,5.20902264,4526.9,4526.2,0.4768]
[1757998343194,2.20913085,4526.7,4526.2,0.4768]
[1757998343515,2.31953085,4526.7,4526.1,4.1539]
[1757998343706,0.1104,4526.7,4526.1,4.1539]
[1757998344509,2.31954483,4526.7,4526.1,3.693]
[1757998344674,0.5732,4526.7,4526.1,3.693]
[1757998344876,2.78232483,4526.7,4526.1,3.693]
[1757998345074,2.31952483,4526.7,4526.1,3.693]
[1757998345385,2.31952483,4526.7,4526.0,0.458]
[1757998345577,2.67200286,4526.6,4525.9,0.1114]
[1757998345780,0.4628,4526.6,4525.9,0.1114]
[1757998346120,2.6719898,4526.6,4525.9,0.1114]
[1757998346411,2.30845647,4526.0,4525.9,0.001]
[1757998347002,0.5618,4526.0,4525.9,0.001]
[1757998347177,2.77125647,4526.0,4525.9,0.001]
[1757998347379,0.5618,4526.0,4525.9,0.001]
[1757998347678,2.77125647,4526.0,4525.9,0.001]
[1757998348598,5.77125647,4526.0,4525.9,0.001]
[1757998348802,9.71815647,4526.0,4525.9,0.001]
[1757998349181,9.83006856,4526.0,4525.9,0.001]
[1757998349413,9.71815647,4526.0,4525.9,0.001]
[1757998350528,10.51015647,4526.0,4525.9,0.001]
[1757998350700,10.98401895,4526.0,4525.9,0.001]
[1757998354246,28.75089278,4526.0,4525.9,0.001]
[1757998354551,28.75089278,4526.0,4525.1,1e-08]
[1757998354552,6.00184707,4525.2,4525.1,1e-08]
[1757998354844,11.93398726,4525.2,4525.1,1e-08]
[1757998355015,13.22054974,4525.2,4525.1,1e-08]
[1757998355214,13.3091707,4525.2,4525.1,1e-08]
[1757998355927,13.3091157,4525.2,4525.1,1e-08]
[1757998356122,13.90077638,4525.2,4525.1,1e-08]
[1757998357838,13.90072526,4525.2,4525.1,1e-08]
[1757998358181,13.18852526,4525.2,4525.1,1e-08]
[1757998359251,12.59686458,4525.2,4525.1,1e-08]
[1757998359813,12.59636298,4525.2,4525.1,1e-08]
[1757998361774,13.30856298,4525.2,4525.1,1e-08]
[1757998361921,14.09744388,4525.2,4525.1,1e-08]
[1757998362122,13.30856298,4525.2,4525.1,1e-08]
[1757998362725,13.64028975,4525.2,4525.1,1e-08]
[1757998363027,13.30856298,4525.2,4525.1,1e-08]
[1757998363262,12.98019091,4525.2,4525.1,1e-08]
[1757998363787,12.98019023,4525.2,4525.1,1e-08]
[1757998364108,13.10358082,4525.2,4525.1,1e-08]
[1757998364452,12.64852348,4525.2,4525.1,1e-08]
[1757998364970,12.52512891,4525.2,4525.1,1e-08]
[1757998365475,8.82612891,4525.2,4525.1,1e-08]
[1757998365651,12.52512891,4525.2,4525.1,1e-08]
[1757998366053,13.18579371,4525.2,4525.1,1e-08]
[1757998366254,13.30916934,4525.2,4525.1,1e-08]
[1757998367016,12.89790454,4525.2,4525.1,1e-08]
[1757998367310,12.77452891,4525.2,4525.1,1e-08]
[1757998367453,12.52512891,4525.2,4525.1,1e-08]
[1757998368606,13.71234669,4525.2,4525.1,1e-08]
[1757998368913,12.52512891,4525.2,4525.1,1e-08]
[1757998369215,13.71234669,4525.2,4525.1,1e-08]
[1757998370283,12.52512891,4525.2,4525.1,1e-08]
[1757998370483,12.06232891,4525.2,4525.1,1e-08]
[1757998371275,8.36332891,4525.2,4525.1,1e-08]
[1757998371490,12.05932891,4525.2,4525.1,1e-08]
[1757998372117,12.5942257,4525.2,4525.1,1e-08]
[1757998372325,12.38849353,4525.2,4525.1,1e-08]
[1757998372617,12.59432641,4525.2,4525.1,1e-08]
[1757998373322,6.00194475,4525.0,4524.9,0.001]
[1757998373625,11.89250334,4525.0,4524.9,0.001]
[1757998373978,13.00580841,4525.0,4524.9,0.001]
[1757998374211,11.8196082,4525.0,4524.9,0.001]
[1757998374564,11.81975412,4525.0,4524.9,0.001]
[1757998374869,11.71775412,4525.0,4524.9,0.001]
[1757998375183,11.71675412,4525.0,4524.9,1.254]
[1757998375917,11.71675412,4525.0,4524.9,0.4738]
[1757998376274,11.71675412,4525.0,4524.9,0.001]
[1757998377217,8.02205331,4525.0,4524.9,0.001]
[1757998377419,11.71705331,4525.0,4524.9,0.001]
[1757998378175,5.20999359,4524.9,4524.8,0.08]
[1757998378483,6.21879708,4524.9,4524.8,1.0225]
[1757998378671,6.09505859,4524.9,4524.8,1.0225]
[1757998378876,6.88361383,4524.9,4524.8,1.0225]
[1757998379276,6.88361383,4524.9,4524.8,1.333]
[1757998380508,6.88361383,4524.9,4524.8,0.8602]
[1757998380880,6.88361383,4524.9,4524.8,1.333]
[1757998382333,7.67561383,4524.9,4524.8,1.333]
[1757998382494,11.36861383,4524.9,4524.8,1.333]
[1757998383296,11.36961383,4524.9,4524.8,1.333]
[1757998383496,11.37086325,4524.9,4524.8,1.333]
[1757998384294,7.67686325,4524.9,4524.8,1.333]
[1757998384609,11.36986325,4524.9,4524.8,1.333]
[1757998385924,7.67686325,4524.9,4524.8,1.333]
[1757998386121,1.67486966,4524.9,4524.8,1.333]
[1757998386335,6.912209,4524.9,4524.8,1.333]
[1757998386510,11.10568866,4524.9,4524.8,1.333]
[1757998386695,5.20369507,4524.9,4524.8,1.333]
[1757998386895,7.70321541,4524.9,4524.8,1.333]
[1757998387337,8.49857907,4524.9,4524.8,1.333]
[1757998387505,7.70321541,4524.9,4524.8,1.333]
[1757998388627,9.913209,4524.9,4524.8,1.333]
[1757998389030,7.70321541,4524.9,4524.8,1.333]
[1757998389212,8.29949091,4524.9,4524.8,1.333]
[1757998389839,7.70321541,4524.9,4524.8,1.333]
[1757998390337,7.49729039,4524.9,4524.8,1.333]
[1757998390722,7.70423192,4524.9,4524.8,1.333]
[1757998390925,7.49729039,4524.9,4524.8,1.333]
[1757998391133,9.91422497,4524.9,4524.8,1.333]
[1757998391460,9.91420992,4524.9,4524.8,1.333]
[1757998393953,12.78607358,4524.9,4524.8,0.08]
[1757998394151,12.78607358,4524.9,4524.8,0.081]
[1757998394527,12.78809206,4524.9,4524.8,0.081]
[1757998395029,12.53719206,4524.9,4524.8,0.081]
[1757998396357,12.53653663,4524.9,4524.8,0.081]
[1757998396859,11.7418284,4524.9,4524.8,0.081]
[1757998397265,11.9927284,4524.9,4524.8,0.081]
[1757998397459,11.7418284,4524.9,4524.8,0.081]
[1757998398184,11.2790284,4524.9,4524.8,0.081]
[1757998398985,11.9927284,4524.9,4524.8,0.081]
[1757998399350,11.7418284,4524.9,4524.8,0.081]
[1757998399661,11.2790284,4524.9,4524.8,0.081]
[1757998400387,12.08846707,4524.9,4524.8,0.081]
[1757998400548,0.792,4524.7,4524.6,0.001]
[1757998400749,10.70432608,4524.7,4524.6,0.001]
[1757998400980,12.71050574,4524.7,4524.6,0.001]
[1757998401454,12.46110574,4524.7,4524.6,0.001]
[1757998402392,11.26762608,4524.7,4524.6,0.001]
[1757998402689,12.45913034,4524.7,4524.6,0.001]
[1757998402982,12.70853034,4524.7,4524.6,0.001]
[1757998403393,11.51702608,4524.7,4524.6,0.001]
[1757998403603,11.26762608,4524.7,4524.6,0.001]
[1757998404557,10.81838253,4524.7,4524.6,0.001]
[1757998404756,11.35603208,4524.7,4524.6,0.001]
[1757998404957,11.98292599,4524.7,4524.6,0.001]
[1757998405201,10.89073208,4524.7,4524.6,0.001]
[1757998405800,10.79173208,4524.7,4524.6,1.2061]
[1757998408402,10.79173208,4524.7,4524.6,0.7771]
[1757998409419,10.79173208,4524.7,4524.6,0.001]
[1757998409420,10.79273208,4524.7,4524.6,0.001]
[1757998409715,11.13938416,4524.7,4524.6,0.43]
[1757998409916,11.13938416,4524.7,4524.6,1.2061]
[1757998411183,11.13938416,4524.7,4524.6,0.906]
[1757998411710,11.13938416,4524.7,4524.6,1.2061]
[1757998412095,6.00223782,4524.4,4524.3,0.001]
[1757998412309,10.70424825,4524.4,4524.3,0.001]
[1757998412625,10.70424825,4524.4,4524.3,1.2061]
[1757998412989,12.40424825,4524.4,4524.3,1.2061]
[1757998414408,9.50687014,4524.4,4524.3,1.2061]
[1757998414711,12.40324825,4524.4,4524.3,1.2061]
[1757998415624,13.06796876,4524.4,4524.3,0.906]
[1757998415826,13.86159065,4524.4,4524.3,0.906]
[1757998415987,13.06796876,4524.4,4524.3,1.2061]
[1757998416406,13.86159065,4524.4,4524.3,1.2061]
[1757998416607,13.06796876,4524.4,4524.3,1.2061]
[1757998416807,13.86159065,4524.4,4524.3,1.2061]
[1757998419739,13.8615508,4524.4,4524.3,1.2061]
[1757998420117,13.06792891,4524.4,4524.3,1.2061]
[1757998421897,13.06798557,4524.4,4524.3,1.2061]
[1757998422692,9.37798557,4524.4,4524.3,1.2061]
[1757998422897,13.06598557,4524.4,4524.3,1.2061]
[1757998423194,9.37798557,4524.4,4524.3,1.2061]
[1757998423391,13.06598557,4524.4,4524.3,1.2061]
[1757998424002,9.37798557,4524.4,4524.3,1.2061]
[1757998424216,13.06598557,4524.4,4524.3,1.2061]
[1757998424596,13.06613842,4524.4,4524.3,1.2061]
[1757998426432,13.06632691,4524.4,4524.3,1.2061]
[1757998428134,14.25752082,4524.4,4524.3,1.2061]
[1757998429505,10.56952082,4524.4,4524.3,1.2061]
[1757998429706,14.25552082,4524.4,4524.3,1.2061]
[1757998430829,8.58632691,4524.4,4524.3,1.2061]
[1757998431051,12.1962248,4524.4,4524.3,1.2061]
[1757998431227,12.40390523,4524.4,4524.3,1.2061]
[1757998432820,12.52986915,4524.4,4524.3,1.2061]
[1757998433056,12.7371311,4524.4,4524.3,1.2061]
[1757998433259,12.52986915,4524.4,4524.3,1.2061]
[1757998433658,12.86148604,4524.4,4524.3,1.2061]
[1757998433961,12.65422548,4524.4,4524.3,1.2061]
[1757998434261,12.52986915,4524.4,4524.3,1.2061]
[1757998435843,12.52986915,4524.4,4524.3,0.001]
[1757998436457,12.52986915,4524.4,4524.3,1.2256]
[1757998437962,13.06879538,4524.4,4524.3,1.2256]
[1757998438531,13.06878477,4524.4,4524.3,1.2256]
[1757998438738,13.06877791,4524.4,4524.3,1.2256]
[1757998439066,13.06878235,4524.4,4524.3,1.2256]
[1757998439649,13.06877531,4524.4,4524.3,1.2256]
[1757998441345,12.27315911,4524.4,4524.3,1.2256]
[1757998442071,13.16415911,4524.4,4524.3,0.001]
[1757998442372,13.95977531,4524.4,4524.3,0.001]
[1757998442665,13.62695911,4524.4,4524.3,0.001]
[1757998443162,13.16415911,4524.4,4524.3,0.001]
[1757998445052,14.35535302,4524.4,4524.3,0.001]
[1757998445448,14.25635302,4524.4,4524.3,0.001]
[1757998445666,14.35685302,4524.4,4524.3,0.001]
[1757998449337,14.25635302,4524.4,4524.3,0.7753]
[1757998449572,14.25535302,4524.4,4524.3,1.2256]
[1757998450078,13.06415911,4524.4,4524.3,1.2256]
[1757998450947,9.37915911,4524.4,4524.3,1.2256]
[1757998451140,13.06415911,4524.4,4524.3,1.2256]
[1757998453996,9.37915911,4524.4,4524.3,1.2256]
[1757998454294,13.06415911,4524.4,4524.3,1.2256]
[1757998456393,9.37915911,4524.4,4524.3,1.2256]
[1757998456710,13.06415911,4524.4,4524.3,1.2256]
[1757998458293,14.25535302,4524.4,4524.3,1.2256]
[1757998458492,14.25535302,4524.4,4524.3,0.7753]
[1757998458964,13.06415911,4524.4,4524.3,0.7753]